bitfinex/quotes_SOLUSD_20250125
["timestamp","ask_amount","ask_price","bid_price","bid_amount"]
[1737819848268,20.0,253.73,253.61,6.232]
[1737819848468,20.0,253.68,253.61,6.232]
[1737819849479,1.971,253.67,253.61,6.232]
[1737819849697,1.971,253.67,253.57,1.6375]
[1737819849901,23.776884,253.66,253.57,1.6375]
[1737819850200,20.0,253.63,253.57,1.6375]
[1737819851474,1.9714,253.62,253.57,1.6375]
[1737819853102,1.9714,253.62,253.55,6.262]
[1737819863186,20.0,253.58,253.55,6.262]
[1737819863388,20.0,253.58,253.55,0.03]
[1737819864119,23.776884,253.56,253.55,0.03]
[1737819864416,43.776884,253.56,253.55,0.03]
[1737819864902,6.9006,253.6,253.55,0.03]
[1737819864903,1.9716,253.6,253.55,0.03]
[1737819865206,20.0,253.59,253.55,0.03]
[1737819865589,21.9717,253.59,253.55,0.03]
[1737819866785,20.0,253.58,253.55,0.03]
[1737819867586,21.9717,253.59,253.55,0.03]
[1737819867781,20.0,253.59,253.55,0.03]
[1737819868610,0.063,253.63,253.55,0.03]
[1737819868911,0.063,253.63,253.56,1.6402]
[1737819869102,0.063,253.63,253.57,0.39424023]
[1737819869491,0.063,253.63,253.56,1.6402]
[1737819871206,2.0344,253.63,253.56,1.6402]
[1737819878624,0.063,253.63,253.56,1.6402]
[1737819878919,0.063,253.63,253.57,0.39435523]
[1737819879315,0.063,253.63,253.58,6.2782]
[1737819879520,0.063,253.63,253.59,0.3942381]
[1737819880613,0.063,253.66,253.6,3.9432]
[1737819880822,0.063,253.66,253.61,0.39420808]
[1737819881323,0.063,253.76,253.61,0.39420808]
[1737819881494,2.0333,253.76,253.61,0.39420808]
[1737819882109,0.063,253.76,253.65,1.6466]
[1737819882311,0.063,253.76,253.66,6.67225611]
[1737819883220,0.063,253.76,253.67,3.9421]
[1737819883430,0.063,253.76,253.68,0.39408384]
[1737819884321,2.0333,253.76,253.66,6.2782]
[1737819885501,22.0333,253.76,253.66,6.2782]
[1737819885901,20.0,253.72,253.66,5.8782]
[1737819886113,20.0,253.72,253.59,1.6264]
[1737819886696,20.0,253.69,253.59,1.6264]
[1737819888829,20.0,253.69,253.6,6.4305]
[1737819889417,20.0,253.68,253.6,6.4305]
[1737819889730,20.0,253.64,253.56,0.03]
[1737819890919,1.9713,253.63,253.56,0.03]
[1737819893517,20.0,253.59,253.56,0.03]
[1737819895211,23.776884,253.58,253.56,0.03]
[1737819895407,1.9718,253.57,253.56,0.03]
[1737819897050,21.9718,253.57,253.56,0.03]
[1737819897345,1.9718,253.57,253.56,0.03]
[1737819898834,20.0,253.61,253.56,0.03]
[1737819899043,20.0,253.57,253.56,0.03]
[1737819899226,43.776884,253.57,253.56,0.03]
[1737819900339,21.9716,253.6,253.56,0.03]
[1737819900727,20.0,253.59,253.56,0.03]
[1737819901041,1.9717,253.58,253.56,0.03]
[1737819901852,23.776884,253.57,253.56,0.03]
[1737819902226,23.776884,253.57,253.56,0.0001]
[1737819902517,20.0,253.54,253.4,10.6114]
[1737819902725,20.0,253.53,253.4,6.6652]
[1737819903137,1.9722,253.52,253.4,6.6652]
[1737819903449,23.776884,253.47,253.4,6.6652]
[1737819903744,20.0,253.44,253.34,6.6652]
[1737819904753,25.749884,253.43,253.34,6.6652]
[1737819905242,23.776884,253.39,253.32,0.03]
[1737819906434,1.9733,253.38,253.32,0.03]
[1737819906641,20.0,253.4,253.32,0.03]
[1737819907130,5.7,253.44,253.32,0.03]
[1737819907335,1.9723,253.51,253.32,0.42466974]
[1737819907720,1.9723,253.51,253.33,7.8136]
[1737819908043,21.9723,253.51,253.34,0.39456517]
[1737819908347,23.776884,253.5,253.34,0.39456517]
[1737819908644,20.0,253.47,253.35,3.9471]
[1737819908851,20.0,253.47,253.36,0.39456999]
[1737819909337,1.9721,253.53,253.36,24.17145399]
[1737819909745,23.776884,253.52,253.36,0.39456999]
[1737819909929,20.0,253.49,253.36,0.39456999]
[1737819910321,23.776884,253.48,253.33,8.20816523]
[1737819910554,21.9726,253.48,253.33,12.15546523]
[1737819910957,20.0,253.47,253.33,12.15546523]
[1737819912536,21.5781,253.47,253.33,12.15546523]
[1737819912943,21.5781,253.47,253.33,11.7609]
[1737819913350,21.5781,253.47,253.33,11.7909]
[1737819913662,23.776884,253.46,253.33,11.7909]
[1737819913836,23.776884,253.46,253.33,7.8436]
[1737819914647,23.776884,253.44,253.33,7.8436]
[1737819915339,1.5782,253.45,253.33,6.3031]
[1737819915340,23.776884,253.4,253.33,6.3031]
[1737819916239,20.0,253.42,253.33,6.3031]
[1737819916443,20.0,253.4,253.33,6.3031]
[1737819916765,21.5785,253.4,253.33,6.3031]
[1737819917234,1.5785,253.4,253.33,0.03]
[1737819918883,21.5785,253.4,253.33,0.03]
[1737819919040,20.0,253.4,253.33,0.03]
[1737819919479,5.7,253.42,253.33,0.03]
[1737819920592,5.7,253.42,253.33,3.9774]
[1737819920880,1.5782,253.45,253.33,3.9774]
[1737819921176,1.5777,253.52,253.35,6.5954]
[1737819921478,1.5777,253.52,253.36,2.03257544]
[1737819921655,20.0,253.51,253.36,2.03257544]
[1737819922006,20.0,253.47,253.36,1.638]
[1737819922350,23.776884,253.46,253.36,1.638]
[1737819922665,20.0,253.43,253.36,1.638]
[1737819922977,21.5783,253.43,253.36,1.638]
[1737819923447,20.0,253.43,253.36,1.638]
[1737819924555,20.0,253.43,253.36,5.5848]
[1737819924866,21.5783,253.43,253.36,1.638]
[1737819925064,20.0,253.43,253.36,1.638]
[1737819925271,20.0,253.43,253.36,5.5849]
[1737819925566,1.5781,253.47,253.36,5.5849]
[1737819925977,20.0,253.48,253.36,5.5849]
[1737819928185,23.776884,253.46,253.36,5.5849]
[1737819928675,23.776884,253.46,253.36,1.638]
[1737819928875,20.0,253.43,253.36,1.638]
[1737819929276,20.0,253.43,253.35,6.5954]
[1737819929774,23.776884,253.42,253.33,0.03]
[1737819929974,1.5784,253.41,253.33,0.03]
[1737819930195,23.776884,253.43,253.33,0.03]
[1737819931059,20.0,253.4,253.33,0.03]
[1737819931578,21.5785,253.4,253.33,0.03]
[1737819933664,20.0,253.4,253.33,0.03]
[1737819933865,1.5785,253.4,253.33,0.03]
[1737819934172,23.776884,253.39,253.33,0.03]
[1737819934370,1.5785,253.4,253.33,0.03]
[1737819935169,43.776884,253.39,253.33,0.03]
[1737819935585,23.776884,253.37,253.33,0.03]
[1737819937289,20.0,253.41,253.33,0.03]
[1737819938394,3.9457,253.44,253.33,0.03]
[1737819938395,20.0,253.37,253.33,0.03]
[1737819939186,20.0,253.34,253.33,0.03]
[1737819940766,21.5789,253.34,253.33,0.03]
[1737819941187,21.5789,253.34,253.32,0.0001]
[1737819941188,87.5060788,253.34,253.32,0.0001]
[1737819941370,23.776884,253.33,253.32,0.0001]
[1737819942292,20.0,253.33,253.32,0.0001]
[1737819945300,30.0,253.3,253.29,0.0001]
[1737819945477,65.9271788,253.3,253.29,0.0001]
[1737819945688,71.43207864,253.3,253.29,0.0001]
[1737819946400,43.01117864,253.3,253.29,0.0001]
[1737819946698,25.355984,253.3,253.29,0.0001]
[1737819947076,1.5791,253.3,253.29,0.0001]
[1737819947714,13.7293948,253.3,253.29,0.0001]
[1737819948892,14.7293948,253.3,253.29,0.0001]
[1737819949097,20.0,253.21,253.2,0.03]
[1737819949404,1.0,253.19,253.18,0.0001]
[1737819949583,20.0,253.14,253.01,6.3261]
[1737819949786,23.776884,253.13,253.01,6.3261]
[1737819950000,12.1502948,253.18,253.01,6.3261]
[1737819950177,12.1502948,253.18,253.05,3.9517]
[1737819950375,20.0,253.14,253.05,3.9517]
[1737819950576,13.7301948,253.18,253.03,3.952]
[1737819951211,20.0,253.17,253.07,3.9814]
[1737819951403,20.0,253.17,253.07,0.03]
[1737819952490,1.58,253.16,253.07,0.03]
[1737819953617,20.0,253.17,253.07,0.03]
[1737819954106,21.58,253.17,253.07,0.03]
[1737819954477,12.1502948,253.22,253.07,0.03]
[1737819954799,1.5797,253.21,253.1,3.9509]
[1737819955116,21.5797,253.21,253.1,3.9509]
[1737819955614,20.0,253.2,253.09,3.9511]
[1737819955815,20.0,253.2,253.07,0.03]
[1737819955816,20.0,253.2,253.1,3.9509]
[1737819956120,20.0,253.21,253.12,1.8623]
[1737819956274,1.5796,253.23,253.13,6.3261]
[1737819956785,12.1502948,253.2,253.13,6.3261]
[1737819957004,12.1502948,253.18,253.12,0.22]
[1737819957812,12.1502948,253.2,253.12,0.22]
[1737819958387,20.0,253.17,253.12,0.22]
[1737819958874,1.58,253.16,253.12,0.22]
[1737819959880,13.7302948,253.16,253.12,0.22]
[1737819960082,23.776884,253.15,253.12,0.22]
[1737819960281,23.776884,253.13,253.12,0.22]
[1737819960711,20.0,253.08,253.07,0.03]
[1737819960916,33.7307948,253.08,253.07,0.03]
[1737819961810,1.5804,253.1,253.07,0.03]
[1737819962133,13.7306948,253.1,253.07,0.03]
[1737819962420,43.776884,253.08,253.07,0.03]
[1737819962889,45.357384,253.08,253.07,0.03]
[1737819963090,57.5076788,253.08,253.07,0.03]
[1737819963915,57.5076788,253.08,253.0,0.28410298]
[1737819963916,23.776884,253.07,253.0,0.28410298]
[1737819964124,23.776884,253.05,253.0,0.28410298]
[1737819964613,23.776884,253.05,252.93,5.86180298]
[1737819964985,13.7309948,253.04,252.93,5.86180298]
[1737819965181,23.776884,253.03,252.93,5.86180298]
[1737819966883,1.5806,253.06,252.93,9.81530298]
[1737819967086,13.7307948,253.08,252.93,9.81530298]
[1737819967297,20.0,253.04,252.93,9.81530298]
[1737819969020,23.776884,253.01,252.93,5.86180298]
[1737819970289,20.0,253.03,252.93,9.81530298]
[1737819970490,20.0,253.02,252.93,9.81530298]
[1737819971821,12.1502948,253.04,252.93,9.81530298]
[1737819972210,12.1502948,253.06,252.93,9.81530298]
[1737819972722,1.5806,253.07,252.93,9.81530298]
[1737819973307,12.1502948,253.04,252.93,9.81530298]
[1737819973726,20.0,253.03,252.93,9.81530298]
[1737819974222,32.1502948,253.08,252.93,9.81530298]
[1737819974406,20.0,253.05,252.93,9.81530298]
[1737819975627,12.1502948,253.12,252.94,24.17215921]
[1737819976133,12.1502948,253.1,252.94,24.17215921]
[1737819976308,12.1502948,253.1,252.94,0.39527521]
[1737819977120,32.1502948,253.06,252.95,3.9533]
[1737819977524,32.1502948,253.06,252.93,9.81530298]
[1737819977710,20.0,253.05,252.93,9.81530298]
[1737819979143,21.5807,253.05,252.93,9.81530298]
[1737819979648,12.1502948,253.1,252.94,24.1721764]
[1737819979935,1.5801,253.15,252.97,20.0]
[1737819980111,1.5801,253.15,252.98,8.29687281]
[1737819980507,20.0,253.13,252.98,8.29687281]
[1737819980738,35.9271788,253.14,252.99,3.9527]
[1737819980935,20.0,253.09,252.99,3.9527]
[1737819981114,20.0,253.09,252.98,11.8545]
[1737819981314,35.9271788,253.08,252.98,7.9017]
[1737819982409,23.776884,253.05,252.98,7.9017]
[1737819982620,1.5808,253.03,252.93,3.9535]
[1737819983538,12.1502948,253.08,252.93,3.9535]
[1737819983746,1.5806,253.06,252.93,3.9535]
[1737819984112,12.1502948,253.08,252.93,3.9835]
[1737819984318,1.5805,253.08,252.93,3.9835]
[1737819984554,20.0,253.07,252.93,3.9835]
[1737819984732,21.4763235,253.07,252.93,3.9835]
[1737819985343,23.776884,253.06,252.93,3.9835]
[1737819986447,1.5807,253.05,252.93,3.9835]
[1737819987642,20.0,253.07,252.93,3.9835]
[1737819987844,32.1502948,253.07,252.93,3.9835]
[1737819988019,20.0,253.06,252.93,3.9835]
[1737819989048,1.5804,253.09,252.93,3.9835]
[1737819989346,43.776884,253.07,252.93,3.9835]
[1737819989653,1.5806,253.06,252.93,3.9835]
[1737819991255,20.0,253.07,252.93,3.9835]
[1737819991552,21.5806,253.07,252.93,3.9835]
[1737819992952,23.776884,253.04,252.93,0.03]
[1737819993162,23.776884,253.01,252.93,0.03]
[1737819993531,1.5807,253.05,252.93,0.03]
[1737819994058,20.0,253.03,252.93,0.03]
[1737819995329,21.5808,253.03,252.93,0.03]
[1737819996661,1.5808,253.03,252.93,0.03]
[1737819997661,23.776884,253.02,252.93,0.03]
[1737819997835,35.9271788,253.02,252.93,0.03]
[1737819999061,23.776884,252.98,252.93,0.03]
[1737819999261,1.5812,252.97,252.93,0.03]
[1737819999762,1.5809,253.02,252.93,0.03]
[1737820000364,20.0,253.0,252.93,0.03]
[1737820000940,12.1502948,252.98,252.93,0.03]
[1737820001256,1.5814,252.94,252.93,0.0001]
[1737820001457,25.358284,252.94,252.93,0.0001]
[1737820002971,1.5814,252.94,252.93,0.0001]
[1737820003177,1.5813,252.95,252.93,0.0001]
[1737820003680,21.5813,252.95,252.93,0.0001]
[1737820004606,0.72339884,252.97,252.93,0.0001]
[1737820004748,1.5809,253.01,252.93,0.0001]
[1737820005557,12.1502948,253.0,252.93,0.0001]
[1737820005757,23.776884,252.97,252.93,0.0001]
[1737820006891,1.5812,252.96,252.93,0.0001]
[1737820007550,13.7314948,252.96,252.93,0.0001]
[1737820009185,32.1502948,252.98,252.93,0.0001]
[1737820009667,12.1502948,252.96,252.93,0.0001]
[1737820009869,12.1502948,252.98,252.93,0.0001]
[1737820010693,12.1502948,253.0,252.93,0.0001]
[1737820010981,1.5809,253.02,252.93,0.0001]
[1737820011163,1.5809,253.02,252.94,1.5968]
[1737820011870,20.0,253.01,252.94,1.5968]
[1737820012966,13.7311948,253.02,252.94,1.5968]
[1737820012967,12.1502948,253.02,252.94,1.5968]
[1737820013162,13.7308948,253.06,252.95,6.4747]
[1737820013487,20.0,253.03,252.95,6.4747]
[1737820013863,13.7308948,253.06,252.95,6.4747]
[1737820015902,12.1502948,253.04,252.95,6.4747]
[1737820016684,12.1502948,253.04,252.95,10.4279]
[1737820016880,12.1502948,253.04,252.95,6.4747]
[1737820017885,1.5809,253.01,252.95,6.4747]
[1737820018187,12.1502948,253.0,252.95,6.4747]
[1737820019175,12.1502948,253.02,252.95,6.4747]
[1737820019576,12.1502948,253.04,252.95,6.4747]
[1737820020700,12.1502948,253.02,252.95,6.4747]
[1737820020994,12.1502948,252.96,252.93,0.0001]
[1737820021368,1.5813,252.95,252.93,0.0001]
[1737820021569,12.1502948,252.94,252.93,0.0001]
[1737820022573,1.5813,252.95,252.93,0.0001]
[1737820024507,12.1502948,252.94,252.93,0.0001]
[1737820026502,35.9271788,252.94,252.93,0.0001]
[1737820027783,47.7671788,252.94,252.93,0.0001]
[1737820027984,43.68052826,252.94,252.93,0.0001]
[1737820028315,42.15582826,252.94,252.93,0.0001]
[1737820029807,37.8152426,252.94,252.93,0.0001]
[1737820031395,50.6552426,252.94,252.93,0.0001]
[1737820031601,23.776884,252.87,252.73,12.0628]
[1737820031909,7.80970914,252.84,252.73,12.0628]
[1737820033292,7.80970914,252.82,252.73,8.1061]
[1737820033893,23.776884,252.81,252.73,8.1061]
[1737820034293,7.80970914,252.8,252.73,8.1061]
[1737820034897,31.58659314,252.82,252.73,12.0628]
[1737820035099,31.58659314,252.82,252.73,8.1061]
[1737820035285,1.5822,252.81,252.73,8.1061]
[1737820035705,7.80970914,252.8,252.73,8.1061]
[1737820035901,37.80970914,252.8,252.67,0.03]
[1737820036090,7.80970914,252.78,252.67,3.9876]
[1737820036399,31.58659314,252.8,252.67,3.9876]
[1737820037791,1.5823,252.79,252.67,3.9876]
[1737820039107,7.80970914,252.84,252.69,20.0]
[1737820039895,9.39170914,252.84,252.7,23.9572]
[1737820040317,7.80970914,252.82,252.7,23.9572]
[1737820041994,1.582,252.84,252.7,23.9572]
[1737820041995,7.80970914,252.84,252.7,23.9572]
[1737820042610,7.80970914,252.82,252.7,23.9572]
[1737820042997,7.80970914,252.86,252.72,7.6545]
[1737820043315,7.80970914,252.9,252.76,20.0]
[1737820044293,9.39130914,252.9,252.77,23.9561]
[1737820045395,7.80970914,252.86,252.77,23.9561]
[1737820045719,7.80970914,252.84,252.77,3.9561]
[1737820046198,1.5817,252.88,252.73,7.6545]
[1737820046199,7.80970914,252.8,252.73,7.6545]
[1737820046403,7.80970914,252.85,252.73,11.6111]
[1737820047624,7.80970914,252.83,252.73,11.6111]
[1737820049330,9.39180914,252.83,252.73,11.6111]
[1737820049698,12.20854289,252.84,252.73,11.6111]
[1737820050925,13.79054289,252.84,252.73,11.6111]
[1737820051129,13.79044289,252.86,252.73,11.6111]
[1737820051323,12.20854289,252.88,252.73,11.6111]
[1737820051631,1.5818,252.88,252.73,21.89860229]
[1737820052226,12.20854289,252.9,252.73,21.89860229]
[1737820052702,0.063,252.93,252.77,20.0]
[1737820052901,0.063,252.93,252.8,23.776884]
[1737820053105,0.063,252.93,252.81,0.395419]
[1737820053308,0.063,252.93,252.83,20.0]
[1737820053727,0.063,252.93,252.84,8.2037]
[1737820054106,0.063,252.93,252.85,3.9549]
[1737820056731,0.063,252.93,252.87,20.0]
[1737820056905,0.063,252.93,252.89,20.0]
[1737820057232,0.063,252.93,252.9,6.619]
[1737820058034,0.063,252.93,252.92,21.5847]
[1737820058910,0.063,252.93,252.92,5.5385]
[1737820061426,0.063,252.93,252.92,25.5385]
[1737820061600,0.063,252.93,252.92,29.71069319]
[1737820061805,0.063,253.04,252.92,29.71069319]
[1737820062023,0.063,253.04,252.92,5.5385]
[1737820062218,1.6437,253.04,252.93,20.0]
[1737820063121,13.85224289,253.04,252.93,20.0]
[1737820063522,13.85224289,253.04,252.93,23.9536]
[1737820063731,13.85224289,253.04,252.93,3.9536]
[1737820065141,0.063,253.04,252.93,3.9536]
[1737820065310,0.063,253.04,252.94,20.39529456]
[1737820066925,0.063,253.04,252.94,20.0]
[1737820067125,0.063,253.04,252.95,23.9533]
[1737820067328,0.063,253.04,252.95,3.9533]
[1737820068028,1.58,253.17,253.03,20.0]
[1737820068329,0.063,253.19,253.03,20.0]
[1737820068330,1.6428,253.19,253.04,0.39509739]
[1737820068521,0.063,253.19,253.05,8.1929]
[1737820069106,0.063,253.19,253.06,3.9516]
[1737820069306,0.063,253.19,253.06,4.34666677]
[1737820069836,0.063,253.19,253.06,3.9516]
[1737820070731,44.3,253.16,253.06,3.9516]
[1737820071331,44.3,253.16,253.05,8.1929]
[1737820072236,44.3,253.16,253.05,12.1446]
[1737820073313,56.50854289,253.16,253.05,8.1929]
[1737820073929,12.20854289,253.14,253.05,6.5678]
[1737820074433,12.20854289,253.14,253.0,3.9525]
[1737820075540,1.5802,253.13,253.0,3.9525]
[1737820075737,12.20854289,253.12,253.0,3.9525]
[1737820076519,1.5803,253.11,253.0,3.9525]
[1737820077540,12.20854289,253.14,253.0,3.9525]
[1737820077720,1.5802,253.13,253.0,3.9525]
[1737820079328,12.20854289,253.12,253.0,3.9525]
[1737820080536,1.5803,253.11,253.0,3.9525]
[1737820082345,12.20854289,253.1,253.0,3.9525]
[1737820082524,12.20854289,253.1,252.99,6.4753]
[1737820082725,12.20854289,253.08,252.99,6.4753]
[1737820083031,12.20854289,253.0,252.89,6.6373]
[1737820083241,12.20854289,252.96,252.89,6.6373]
[1737820083422,12.20854289,252.96,252.86,1.6411]
[1737820084041,12.20854289,252.98,252.93,0.03]
[1737820084226,12.20854289,252.96,252.93,0.03]
[1737820085335,5.5822,253.03,252.93,0.03]
[1737820085336,12.20854289,253.0,252.93,0.03]
[1737820085545,13.78944289,253.02,252.93,0.03]
[1737820086048,12.20854289,253.0,252.93,0.03]
[1737820086526,13.78954289,253.0,252.93,0.03]
[1737820087450,12.20854289,252.98,252.93,0.03]
[1737820087749,1.5811,252.99,252.93,0.03]
[1737820089141,12.20854289,253.0,252.93,0.03]
[1737820089348,6.22226502,253.07,252.93,0.03]
[1737820089349,12.20854289,253.06,252.93,0.03]
[1737820090418,13.78924289,253.06,252.93,0.03]
[1737820090621,0.72339884,253.07,252.93,0.03]
[1737820090825,4.5155,253.1,252.95,6.2637]
[1737820090826,18.30444289,253.1,252.95,6.2637]
[1737820091939,12.20854289,253.08,252.95,6.2637]
[1737820092843,12.20854289,253.06,252.95,6.2637]
[1737820093147,12.20854289,253.04,252.94,3.9533]
[1737820093753,12.20854289,253.04,252.93,0.03]
[1737820094356,12.20854289,253.04,252.93,3.9836]
[1737820094861,1.5808,253.03,252.93,0.03]
[1737820095028,12.20854289,253.02,252.93,0.03]
[1737820095532,12.20854289,253.0,252.93,0.03]
[1737820096329,12.20854289,253.02,252.93,0.03]
[1737820097757,1.5808,253.03,252.93,0.03]
[1737820099451,13.78944289,253.02,252.93,0.03]
[1737820099842,12.20854289,253.0,252.93,0.03]
[1737820100540,13.78954289,253.0,252.93,0.03]
[1737820101862,12.20854289,252.98,252.93,0.03]
[1737820102056,12.20854289,252.96,252.93,0.03]
[1737820103057,12.20854289,253.01,252.93,0.03]
[1737820103356,12.20854289,253.03,252.93,0.03]
[1737820103665,13.78934289,253.03,252.93,0.03]
[1737820104260,12.20854289,253.05,252.93,0.03]
[1737820104458,12.20854289,253.08,252.94,6.6]
[1737820104644,12.20854289,253.04,252.94,6.6]
[1737820104966,1.5808,253.03,252.94,10.5534]
[1737820106368,12.20854289,253.02,252.94,6.6]
[1737820106740,12.20854289,253.02,252.93,0.03]
[1737820107245,12.20854289,253.0,252.93,0.03]
[1737820107645,12.20854289,253.0,252.89,3.4842]
[1737820108167,12.20854289,252.96,252.88,10.5544]
[1737820109456,12.20854289,252.96,252.88,6.6]
[1737820109709,12.20854289,252.94,252.88,6.6]
[1737820109876,12.20854289,252.94,252.86,5.5958]
[1737820110367,12.20854289,252.94,252.86,1.6411]
[1737820111870,1.5814,252.93,252.86,1.6411]
[1737820112964,12.20854289,253.09,252.89,6.6]
[1737820113166,12.20854289,253.09,253.0,10.0]
[1737820113372,12.20854289,253.07,253.0,10.0]
[1737820114847,13.78914289,253.07,253.0,10.0]
[1737820115274,12.20854289,253.07,253.0,10.0]
[1737820116880,12.20854289,253.05,253.0,10.0]
[1737820118583,12.20854289,253.09,253.0,10.0]
[1737820118761,0.063,253.12,253.01,6.99519971]
[1737820120052,0.063,253.12,253.05,20.0]
[1737820120259,0.063,253.12,253.06,0.39507037]
[1737820120573,0.063,253.12,253.07,3.9514]
[1737820120772,0.063,253.12,253.08,0.39503241]
[1737820121488,0.063,253.12,253.09,3.9511]
[1737820122796,0.063,253.12,253.06,23.776884]
[1737820122797,0.063,253.12,253.11,10.2269]
[1737820125167,0.063,253.12,253.11,10.62191152]
[1737820126360,0.063,253.12,253.11,10.2269]
[1737820127203,0.063,253.12,253.11,10.62194819]
[1737820127686,0.063,253.12,253.11,34.39883219]
[1737820129307,0.063,253.19,253.11,34.39883219]
[1737820129308,0.063,253.19,253.15,23.776884]
[1737820129499,0.063,253.19,253.16,0.39487696]
[1737820129801,0.063,253.23,253.18,43.776884]
[1737820129997,0.063,253.23,253.22,26.1512]
[1737820130987,0.063,253.23,253.22,30.1003]
[1737820131180,0.063,253.23,253.22,53.877184]
[1737820132286,0.0001,253.23,253.22,53.877184]
[1737820132609,0.0001,253.23,253.22,54.27193414]
[1737820133003,0.063,253.31,253.26,20.0]
[1737820133195,0.063,253.31,253.27,0.39470277]
[1737820133699,0.063,253.31,253.29,20.0]
[1737820133886,0.063,253.31,253.29,44.17155789]
[1737820134087,0.063,253.31,253.3,23.776884]
[1737820134287,0.063,253.31,253.29,1.90727389]
[1737820134688,0.063,253.31,253.25,20.0]
[1737820135105,0.063,253.31,253.26,3.9485]
[1737820136013,11.96054289,253.38,253.26,3.9485]
[1737820136707,33.9455,253.45,253.26,3.9485]
[1737820136708,12.20854289,253.36,253.26,3.9485]
[1737820138018,12.20854289,253.36,253.23,3.9489]
[1737820140113,20.0,253.38,253.23,3.9489]
[1737820140409,12.20854289,253.37,253.23,3.9489]
[1737820142231,20.0,253.38,253.24,0.3947963]
[1737820142798,1.6414,253.42,253.24,24.1716803]
[1737820142994,0.063,253.42,253.27,20.0]
[1737820143212,20.0,253.41,253.28,0.39468314]
[1737820143399,20.0,253.41,253.29,13.8181]
[1737820143609,20.0,253.41,253.3,0.39468797]
[1737820144225,0.063,253.42,253.31,3.9477]
[1737820144527,0.063,253.42,253.32,0.39464733]
[1737820145915,0.063,253.42,253.32,24.17153133]
[1737820146303,0.063,253.42,253.33,21.4262]
[1737820146508,0.063,253.42,253.34,0.394605]
[1737820146904,0.063,253.36,253.34,0.394605]
[1737820147716,0.063,253.36,253.34,24.171489]
[1737820147915,0.063,253.42,253.37,20.0]
[1737820148121,0.063,253.42,253.41,20.0]
[1737820148517,0.063,253.42,253.41,47.722984]
[1737820149114,0.063,253.42,253.41,3.9461]
[1737820150623,0.063,253.42,253.41,4.34063263]
[1737820151212,0.063,253.42,253.41,3.9461]
[1737820152703,0.063,253.42,253.39,3.9464]
[1737820153622,0.063,253.42,253.35,0.39455744]
[1737820153805,0.063,253.42,253.36,3.9469]
[1737820154206,0.063,253.42,253.33,7.6103]
[1737820154406,1.6414,253.42,253.29,3.948]
[1737820154608,1.6414,253.42,253.31,20.0]
[1737820154809,0.063,253.42,253.31,20.0]
[1737820155209,0.063,253.42,253.32,0.39467304]
[1737820155526,0.063,253.42,253.37,20.0]
[1737820155730,0.063,253.42,253.39,3.9464]
[1737820156131,13.78624289,253.52,253.4,0.39455434]
[1737820156132,11.83454289,253.52,253.4,0.39455434]
[1737820156437,13.78614289,253.54,253.4,0.39455434]
[1737820157232,13.78614289,253.54,253.41,3.9461]
[1737820159427,1.5776,253.54,253.41,3.9461]
[1737820159835,13.78614289,253.54,253.41,3.9461]
[1737820160022,13.78614289,253.54,253.43,3.9458]
[1737820160733,1.5948,253.55,253.43,3.9458]
[1737820161036,1.5948,253.55,253.43,23.9458]
[1737820161441,1.5948,253.55,253.44,0.39449644]